Cogmind - Beta 14 *** ADVENTURER MODE // 2024.08.17 @ 20:42:21 Player: Bob Result: Destroyed by RX-HUK(R) with Subdweller Beam Cannon Performance ------------- Evolutions (0) 0 Regions Visited (2) 400 Robots Destroyed (13) 65 Value Destroyed (273) 273 Prototype IDs (0) 0 Alien Tech Used (0) 0 Bonus (0) 0 TOTAL SCORE: 738 Bonus ------- None Cogmind --------- Core Integrity 0/250 Matter 195/300 Energy 60/100 System Corruption 0% Temperature Hot (297) Movement Core (300) Ox5 Location -10/Subcaves Parts ------- > --- POWER (1) -------- (None) > --- PROPULSION (2) --- (None) > --- UTILITY (2) ------ Medium Storage Unit Signal Interpreter > --- WEAPON (2) ------- Beam Cannon Beam Cannon > --- INVENTORY (10) --- Improved Heat Sink Improved Terrain Scanner Scrap Shield Makeshift Hacking Suite Beam Cannon Mining Laser Peak State ------------ > --- POWER ------------ Ion Engine > --- PROPULSION ------- Aluminum Leg Makeshift Leg > --- UTILITY ---------- Medium Storage Unit Signal Interpreter > --- WEAPON ----------- Barrage Gun Mining Laser > --- INVENTORY -------- Improved Heat Sink Improved Terrain Scanner Targeting Computer Scrap Shield Makeshift Hacking Suite Beam Cannon Beam Cannon Beam Cannon Battle Cannon [Rating: 14] Favorites ----------- Power Ion Engine Engine Ion Engine Propulsion Aluminum Leg Leg Aluminum Leg Utility Medium Storage Unit Storage Medium Storage Unit Processor Signal Interpreter Protection Light Armor Plating Weapon Light Assault Rifle Energy Cannon Beam Cannon Ballistic Gun Light Assault Rifle Ballistic Cannon Battle Cannon Special Weapon Mining Laser Build | -11 -10 -10 ------- Run | Yrd Mat Sub Slots Evolved . | . . . Power . | . . . Propulsion . | . . . Utility . | . . . Weapon . | . . . Parts Attached 24 | 6 5 13 Power 6 | 1 1 4 Engine 6 | 1 1 4 Core . | . . . Reactor . | . . . Propulsion 4 | 2 1 1 Treads . | . . . Leg 4 | 2 1 1 Wheel . | . . . Hover . | . . . Flight . | . . . Utility 4 | 1 3 . Device . | . . . Storage 2 | 1 1 . Processor 1 | . 1 . Hackware . | . . . Protection 1 | . 1 . Artifact . | . . . Weapon 10 | 2 . 8 Energy Gun . | . . . Energy Cannon 2 | . . 2 Ballistic Gun 3 | 2 . 1 Ballistic Cannon 3 | . . 3 Launcher . | . . . Special Weapon 2 | . . 2 Impact Weapon . | . . . Slashing Weapon . | . . . Piercing Weapon . | . . . Special Melee Weapon . | . . . Unidentified Prototypes . | . . . Parts Lost 7 | . . 7 Power 3 | . . 3 Propulsion 2 | . . 2 Utility . | . . . Weapon 2 | . . 2 Highest Loss Streak 7 | . . 7 To Critical Strikes . | . . . Average Slot Usage (%) 98 | . 97 99 Engine 13 | . 14 13 Leg 27 | . 28 27 Storage 14 | . 14 14 Processor 7 | . 2 14 Protection 5 | . 9 . Ballistic Gun 23 | . 28 18 Ballistic Cannon 2 | . . 5 Special Weapon 1 | . . 3 Peak Build Rating 14 | 6 8 14 Average Rating 9 | 4 7 11 On Entrance 4 | . 6 8 Naked Turns . | . . . Heaviest Build 21 | 10 20 21 Greatest Support 30 | 20 20 30 Greatest Overweight (x) 1 | . . 1 Average Overweight (x) . | . . . Largest Inventory Capacity 10 | 8 10 10 Average Capacity 9 | 7 9 10 Most Carried 10 | 4 8 10 Average Carried 6 | . 3 9 Final Capacity 10 | 8 10 10 Final Carried 7 | . 7 7 Class Distribution -------------------- 100% | Mutant Dominant Class ---------------- Mutant | -10/Materials Mutant | -10/Subcaves Resources | -11 -10 -10 ----------- Run | Yrd Mat Sub Matter Collected 571 | 165 227 179 Remotely . | . . . Salvage Created 393 | . 331 62 Parts 43 | . 38 5 Haulers Intercepted 1 | . 1 . Recyclers Shooed . | . . . Parts Field Recycled . | . . . Retrieved Matter . | . . . Parts Self-Destructed 13 | . . 13 Prevented . | . . . Kills | -11 -10 -10 ------- Run | Yrd Mat Sub Combat Hostiles Destroyed 10 | . 8 2 Guns 10 | . 8 2 Classes Destroyed 5 | . 4 1 Hauler 1 | . 1 . Watcher 2 | . 2 . Swarmer 5 | . 4 1 Grunt 4 | . 4 . Subdweller 1 | . . 1 Best Kill Streak 4 | . 4 1 Combat Bots Only 2 | . 2 1 Max Kills in Single Turn 2 | . 2 1 Gunslinging 1 | . 1 . Exploded . | . . . Melee . | . . . Uniques/NPCs Destroyed . | . . . Combat | -11 -10 -10 -------- Run | Yrd Mat Sub Hostile Shots Fired 114 | . 42 72 Missed 37 | . 13 24 Damage Taken 1134 | . 226 908 Core 253 | . 36 217 Absorbed by Shields . | . . . Ignored by Resistances 329 | . 77 252 Core Remaining (%) 100 | 100 . . Volleys Fired 81 | . 41 40 Largest 2 | . 2 2 Hottest 120 | . 40 120 Shots Fired 151 | . 82 69 Gun 120 | . 82 38 Cannon 25 | . . 25 Launcher . | . . . Special 6 | . . 6 Kinetic 137 | . 82 55 Thermal 14 | . . 14 Explosive . | . . . Electromagnetic . | . . . Robot Hit Streak 13 | . 10 13 Robot Miss Streak 2 | . 2 2 Penetration Max . | . . . Secondary Targets 2 | . 2 . Max Gunslinging Chain 1 | . 1 . Shots Hit Robots 118 | . 64 54 Core Hits 33 | . 24 9 Critical Kills . | . . . Critical Parts Destroyed . | . . . Critical Strikes 1 | . . 1 Blast 1 | . . 1 Melee Attacks . | . . . Impact . | . . . Slashing . | . . . Piercing . | . . . Sneak Attacks . | . . . Combat Hostiles . | . . . Follow-up Attacks . | . . . Damage Inflicted 1143 | . 499 644 Guns 857 | . 499 358 Cannons 286 | . . 286 Explosions . | . . . Melee . | . . . Ramming . | . . . Kinetic 1039 | . 499 540 Thermal 104 | . . 104 Explosive . | . . . Electromagnetic . | . . . Impact . | . . . Slashing . | . . . Piercing . | . . . Highest Corruption . | . . . Average Corruption . | . . . Corruption Purged . | . . . Corruption Blocked . | . . . Overload Shots . | . . . Overflow Damage . | . . . Projectiles . | . . . Explosions . | . . . Melee . | . . . Knockbacks 2 | . . 2 Impact . | . . . Kinetic 2 | . . 2 Secondary . | . . . Self-Inflicted Damage . | . . . Shots . | . . . Rammed . | . . . Targets Rammed . | . . . Kicked . | . . . Crushed . | . . . Highest Temperature 273 | . 50 273 Average Temperature 18 | . 12 56 Received Heat Transfer 687 | . 132 555 Effects 1 | . . 1 Energy Bleed 1 | . . 1 Siege Activations . | . . . Robots Corrupted . | . . . Combat Hostiles . | . . . Parts Fried . | . . . Impact Corruptions . | . . . Robots Melted . | . . . Combat Hostiles . | . . . Parts Melted . | . . . Heat Transferred 222 | . . 222 Parts Sabotaged . | . . . Parts Stolen . | . . . Parts Stripped . | . . . Power Chain Reactions . | . . . Alert | -11 -10 -10 ------- Run | Yrd Mat Sub Peak Influence 135 | . 135 . Initial . | . . . Average 43 | . 45 . Maximum Alert Level . | . . . Low Security (%) 100 | 100 100 . Level 1 . | . . . Level 2 . | . . . Level 3 . | . . . Level 4 . | . . . Level 5 . | . . . High Security . | . . . Max Security . | . . . Squads Dispatched 1 | . 1 . Investigation 1 | . 1 . Extermination . | . . . Reinforcement . | . . . Assault . | . . . Garrison . | . . . Intercept . | . . . Searches Triggered . | . . . Construction Impeded . | . . . Haulers Reinforced . | . . . Active Scanning Responses . | . . . Cargo Convoy Interrupts . | . . . Stealth | -11 -10 -10 --------- Run | Yrd Mat Sub Distress Signals 1 | . 1 . Communications Jammed . | . . . Distress Signals . | . . . Times Spotted 32 | . 19 13 Peak Tracking Total 4 | . 4 3 Tactical Retreats 2 | . 2 . Traps | -11 -10 -10 ------- Run | Yrd Mat Sub Traps Triggered 1 | . 1 . Indirectly . | . . . Trap Hack Attempts . | . . . Triggered . | . . . Disarmed . | . . . Reprogrammed . | . . . Reused . | . . . Traps Extracted . | . . . Installed . | . . . Triggered . | . . . Machines | -11 -10 -10 ---------- Run | Yrd Mat Sub Machines Disabled . | . . . Max in Single Turn . | . . . Machines Repaired . | . . . Machines Dismantled . | . . . Machines Sabotaged . | . . . Overloaded Fab Kills . | . . . Hacking | -11 -10 -10 --------- Run | Yrd Mat Sub Machines Accessed 4 | . 4 . Terminals 4 | . 4 . Fabricators . | . . . Repair Stations . | . . . Recycling Units . | . . . Scanalyzers . | . . . Garrison Access . | . . . Total Hacks 6 | . 6 . Successful 4 | . 4 . Failed 2 | . 2 . Catastrophic . | . . . Database Lockouts . | . . . Manual . | . . . Terminals 6 | . 6 . Fabricators . | . . . Repair Stations . | . . . Recycling Units . | . . . Scanalyzers . | . . . Garrison Access . | . . . Terminal Hacks 4 | . 4 . Branch Access Points 1 | . 1 . Reinforcement Status 1 | . 1 . Hauler Manifests 1 | . 1 . Registered Components 1 | . 1 . Fabricator Hacks . | . . . Repair Station Hacks . | . . . Recycling Unit Hacks . | . . . Scanalyzer . | . . . Garrison Access Hacks . | . . . Unauthorized Hacks . | . . . Terminals . | . . . Fabricators . | . . . Repair Stations . | . . . Recycling Units . | . . . Scanalyzers . | . . . Garrison Access . | . . . Data Cores Recovered . | . . . Used . | . . . Hacking Detections 3 | . 3 . Full Trace Events . | . . . Feedback Events . | . . . Feedback Blocked . | . . . Robot Schematics Acquired . | . . . Robots Built . | . . . Authchips . | . . . Time . | . . . Total Robot Build Rating . | . . . Part Schematics Acquired . | . . . Parts Built . | . . . Authchips . | . . . Time . | . . . Total Part Build Rating . | . . . Parts Repaired . | . . . Time . | . . . Parts Recycled . | . . . Recycled Matter . | . . . Retrieved Matter . | . . . Retrieved Components . | . . . Parts Scanalyzed . | . . . Part Schematics Acquired . | . . . Parts Damaged . | . . . Bothacking | -11 -10 -10 ------------ Run | Yrd Mat Sub Used RIF Installer . | . . . Robots Hacked . | . . . Non-combat . | . . . Combat . | . . . Robot Hacks Applied . | . . . Relay Couplers Released . | . . . Fabnet Peak Effective % . | . . . Robots Rewired . | . . . Allies Hacked . | . . . Hacks Repelled . | . . . Allies | -11 -10 -10 -------- Run | Yrd Mat Sub Total Allies . | . . . Largest Group . | . . . Highest-Rated Group . | . . . Highest-Rated Ally . | . . . Total Orders . | . . . Ally Attacks . | . . . Total Damage . | . . . Kills . | . . . Allies Corrupted . | . . . Allies Melted . | . . . Intel | -11 -10 -10 ------- Run | Yrd Mat Sub Robot Analysis Total . | . . . Derelict Logs Recovered 1 | . . 1 Drone Launches . | . . . Drone Recoveries . | . . . Exploration | -11 -10 -10 ------------- Run | Yrd Mat Sub Turns Passed 2185 | 48 1179 958 Spaces Moved 1500 | 35 857 608 Core 7 | 7 . . Treads . | . . . Legs 1493 | 28 857 608 Wheels . | . . . Hover . | . . . Flight . | . . . Fastest Speed 50 | 50 120 120 Average Speed 124 | 106 120 131 Slowest Speed 190 | 120 120 190 Overloaded Moves . | . . . Propulsion Burnouts . | . . . Robots Hopped . | . . . Cave-ins Triggered . | . . . Exploration Rate (%) 47 | 3 89 51 Regions Visited 2 Branch Regions 1 Pre-discovered Areas 1 | . . 1 Known Exits Taken 1 | . 1 . Unknown Exits Taken 1 | 1 . . Scrap Searched . | . . . Spaces Dug . | . . . Terrain Destroyed . | . . . Melee . | . . . Projectile . | . . . AOE . | . . . Terrain Rammed . | . . . Walls Destroyed . | . . . Machines Disabled . | . . . Actions | -11 -10 -10 --------- Run | Yrd Mat Sub Total 1680 | 46 943 691 Wait 44 | . 23 21 Move 1498 | 34 856 608 Hop . | . . . Pick Up 23 | 6 13 4 Fast Attach 2 | . . 2 Attach 11 | 6 2 3 Detach . | . . . Swap 11 | . 3 8 Drop 10 | . 5 5 Fire 81 | . 41 40 Melee . | . . . Ram . | . . . Kick . | . . . Crush . | . . . Escape Stasis . | . . . Rewire . | . . . Trap . | . . . Miscellaneous . | . . . Route ------- -11/Scrapyard -10/Materials (discovered 6 exits: *Mat x3 / *Min x2 / *Sub) -10/Subcaves (discovered 1 exit: *Mat) History --------- Turn | Location | Event 5 | -11/Scrapyard | Discovered new exit (range 16) 49 | -11/Scrapyard | Entered Materials 248 | -10/Materials | Discovered new exit (range 13) 314 | -10/Materials | Build established: Mutant 487 | -10/Materials | Discovered new exit (range 10) 622 | -10/Materials | Discovered new exit (range 8) 757 | -10/Materials | Discovered new exit (range 6) 911 | -10/Materials | Discovered new exit (range 16) 1020 | -10/Materials | Discovered new exit (range 13) 1037 | -10/Materials | Identified exit to Materials 1044 | -10/Materials | Identified exit to Mines 1227 | -10/Materials | Identified exit to Subcaves 1228 | -10/Materials | Entered Subcaves 1278 | -10/Subcaves | Ambushed by Subdwellers from Twisted Machinery 1576 | -10/Subcaves | Shifting Twisted Machinery released Battle Cannon 1630 | -10/Subcaves | Shifting Twisted Machinery released Mak. Leg 1716 | -10/Subcaves | Shifting Twisted Machinery released Battle Cannon 1716 | -10/Subcaves | Discovered new exit (range 16) 1736 | -10/Subcaves | Identified exit to Materials 1991 | -10/Subcaves | Learned location of Zion (-7) 2161 | -10/Subcaves | Core integrity fell below 50% 2183 | -10/Subcaves | Core integrity fell below 20% 2186 | -10/Subcaves | Destroyed by RX-HUK(R) with Subdweller Beam Cannon Last Messages --------------- 02101_ D7-Q3L(R) destroyed. 02127_ Dropped Ion Engine. 02128_ Dropped Targeting Computer. 02129_ Acquired Ion Engine. 02144_ RX-HUK(R): "WEHOME!" 02146_ Ion Engine destroyed. 02154_ Y7-V19(h) suffers critical hit (Destroy). 02157_ HV Slug penetrates GE-1GL(R). 02157_ GE-1GL(R) suffers critical hit (Destroy). 02157_ GE-1GL(R) knocked back. 02158_ Y7-V19(h) destroyed. 02160_ Battle Cannon destroyed. 02164_ Acquired Lgt. Ion Engine. 02173_ Barrage Gun destroyed. 02174_ Aluminum Leg destroyed. 02174_ Lgt. Ion Engine destroyed. 02176_ Mak. Leg destroyed. 02184_ Critical hit (Meltdown: +240). 02185_ Overheating: Energy bleed (-18). 02186_ Lgt. Ion Engine destroyed. Map ----- +----------------------------------------------------+ | ???????????????????????????????? ??# %%% | | ????????????????????????????????# ??## & | | ???????????????????????????????## #???# ##### | | ??????????????????????????????## #??## #???## | | ??????????????????????????????# ##?# ##???? | | ?????????????????????????????## ### #???? | | ?????????????????????????????# #???? | | ?????????????????????????????# ##??? | | ?????????????????????????????# #??? | | ?????????????????????????????# [ ##??? | | ?????????????????????????????# *% #######???? | | ????????????????????????????## & #?????????? | | ?????????????????????? "#??# " #?????????? | | ?????????????????""???""""??##### ####?????????? | | ????????????????#? "" """"##???## ##????????????? | | ????????????????? " """ "###?# ##????????????? | | ????????????????? """" " #### =%#????????????? | | ?????????????????? " """" # # = #????????????? | | ???????????????????# """ !##????????????? | | ?????????????????????# "R"" #????????????? | | ??????????????????????# !=" ###????????????? | | ??????????????????????#R !%! # ##??????????????? | | ??????????????????????#% R## # #???????????????? | | ??????????????????????## ### ##???????????????? | | ?????????????????????##=% ;#?## #????????????????? | | ?????????????????????# @ #?? #????????????????? | | ?????????????????????#"" ##?## #????????????????? | | ?????????????????????## ??? ????????????????? | | ????????????????????? "#" ??? ????????????????? | | ???????????????????"" " ?? ????????????????? | | ???????????????????"" "" ?## ????????????????? | | ???????????????????""# #"" #?## ???????????????? | | ???????????????????"?? ##" ##??? ???????????????? | | ?????????????????????" ?" #???? ???????????????? | | ?????????????????????"??? ???? ???????????????? | | ?????????????????????????? ?????????????????????? | | ?????????????????????????? ?????????????????????? | | ?????????????????????????? ?????????????????????? | | ??????????????????????????? ?????????????????????? | | ??????????????????????????? ?????????????????????? | | ???????????????????????????#?????????????????????? | | ?????????????????????????????????????????????????? | | ?????????????????????????????????????????????????? | | ?????????????????????????????????????????????????? | | ?????????????????????????????????????????????????? | | ?????????????????????????????????????????????????? | | ?????????????????????????????????????????????????? | | ?????????????????????????????????????????????????? | | ?????????????????????????????????????????????????? | | ?????????????????????????????????????????????????? | +----------------------------------------------------+ Best States ------------- Heat Dissipation 25 Energy Generation 10 Energy Capacity 250 Matter Stores 300 Matter Capacity 300 Sight Range 16 Terrain Scan Density 10 Armor Coverage 150 Resistance: KI 20 Resistance: TH 20 Resistance: EX 20 Resistance: EM 20 Resistance: I 20 Resistance: S 20 Resistance: P 20 Evasion (%) 55 Offensive Hacking 10 Item Schematics ----------------- None Robot Schematics ------------------ None Fabricated ------------ Nothing Alien Tech Used ----------------- None Achievements -------------- None Challenges ------------ None Game ------ Seed LayeredLargeRecalibrator Manual? 0 Play Time 00:16:19 Cumulative 202.7 hours Start 2024.08.17 @ 20:27:39 End 2024.08.17 @ 20:42:21 Sessions 1 Manual Loads 0 Difficulty Adventurer Special Mode None Game No. 303 Rogue 241 Adventurer 62 Explorer 0 Win Type - Total 5 Types 2/1/0/2/0/0/0/0/0 Lore% 32 Gallery% 58 Achievement% 55 Wizard Run 0 Options --------- Layout 1 ASCII 0 Keyboard 0 Movement Arrows Keybinds 0 Fullscreen 1 Font 16/SmallcapsGlow Map View 55x38 Zoom Use 0% Tactical HUD 1 Map Filters NONE Filters NONE Steam 1 RUN: 6cddeea9-d26e-42d6-9be3-ee5428f601fd